[Event "Titled Tuesday Blitz January 03 Early 2023"]
[White "Murtazin, Ruslan"]
[Black "Grigoriants, Sergey"]
[WhiteFideId "24175960"]
[BlackFideId "4130804"]
[WhiteElo "2247"]
[BlackElo "2562"]
[Result "0-1"]
[Round "03"]
[TimeControl "180+2"]
[Date "2023.01.03"]
[WhiteClock "0:00:02"]
[BlackClock "0:00:50"]

1. e4 {[%clk 0:02:59]}  e5 {[%clk 0:02:47]} 2. Nf3 {[%clk 0:02:59]}  Nc6 {[%clk 0:02:47]} 3. Nc3 {[%clk 0:02:59]}  Nf6 {[%clk 0:02:44]} 4. Be2 {[%clk 0:03:00]}  Bb4 {[%clk 0:02:40]} 5. Nd5 {[%clk 0:02:59]}  Bc5 {[%clk 0:02:27]} 6. d3 {[%clk 0:02:59]}  h6 {[%clk 0:02:26]} 7. c3 {[%clk 0:02:59]}  d6 {[%clk 0:02:26]} 8. b4 {[%clk 0:02:59]}  Bb6 {[%clk 0:02:25]} 9. a4 {[%clk 0:02:59]}  a5 {[%clk 0:02:23]} 10. Nxb6 {[%clk 0:02:51]}  cxb6 {[%clk 0:02:23]} 11. b5 {[%clk 0:02:52]}  Ne7 {[%clk 0:02:22]} 12. O-O {[%clk 0:02:53]}  O-O {[%clk 0:02:22]} 13. Re1 {[%clk 0:02:46]}  Ng6 {[%clk 0:02:21]} 14. Bf1 {[%clk 0:02:44]}  Re8 {[%clk 0:02:21]} 15. h3 {[%clk 0:02:17]}  d5 {[%clk 0:02:16]} 16. Bb2 {[%clk 0:02:09]}  dxe4 {[%clk 0:02:03]} 17. dxe4 {[%clk 0:02:08]}  Qc7 {[%clk 0:02:04]} 18. Qc2 {[%clk 0:01:08]}  Be6 {[%clk 0:02:02]} 19. Bc1 {[%clk 0:00:51]}  Rac8 {[%clk 0:02:00]} 20. Be3 {[%clk 0:00:51]}  Nd7 {[%clk 0:01:56]} 21. Rac1 {[%clk 0:00:48]}  Nc5 {[%clk 0:01:43]} 22. c4 {[%clk 0:00:48]}  Nf8 {[%clk 0:01:35]} 23. Nd2 {[%clk 0:00:23]}  f6 {[%clk 0:01:26]} 24. Nb3 {[%clk 0:00:19]}  Nxb3 {[%clk 0:01:20]} 25. Qxb3 {[%clk 0:00:19]}  Nd7 {[%clk 0:01:21]} 26. Qc2 {[%clk 0:00:15]}  Nc5 {[%clk 0:01:21]} 27. f3 {[%clk 0:00:14]}  Red8 {[%clk 0:01:21]} 28. Red1 {[%clk 0:00:14]}  Kf7 {[%clk 0:01:15]} 29. Rxd8 {[%clk 0:00:13]}  Rxd8 {[%clk 0:01:15]} 30. Rd1 {[%clk 0:00:14]}  Ke7 {[%clk 0:01:06]} 31. Rxd8 {[%clk 0:00:13]}  Qxd8 {[%clk 0:01:06]} 32. Kf2 {[%clk 0:00:14]}  g5 {[%clk 0:01:06]} 33. g4 {[%clk 0:00:13]}  Bf7 {[%clk 0:01:03]} 34. Ke1 {[%clk 0:00:12]}  h5 {[%clk 0:01:02]} 35. Kf2 {[%clk 0:00:07]}  h4 {[%clk 0:01:02]} 36. Ke1 {[%clk 0:00:07]}  Qd6 {[%clk 0:01:00]} 37. Be2 {[%clk 0:00:06]}  Ne6 {[%clk 0:00:56]} 38. Qc3 {[%clk 0:00:02]}  Nd4 {[%clk 0:00:56]} 39. Kf2 {[%clk 0:00:02]}  Qc5 {[%clk 0:00:54]} 40. Ke1 {[%clk 0:00:01]}  Nc2+ {[%clk 0:00:50]} 41. Qxc2 {[%clk 0:00:01]}  Qxe3 {[%clk 0:00:50]} 42. Kf1 {[%clk 0:00:02]}  Qd4 {[%clk 0:00:50]} 0-1


[Site "https://www.chess.com"]

[Event "Titled Tuesday Blitz January 03 Early 2023"]
[White "Berezin, Viktor"]
[Black "Zierk, Steven"]
[WhiteFideId "14107872"]
[BlackFideId "2034255"]
[WhiteElo "2307"]
[BlackElo "2488"]
[Result "0-1"]
[Round "03"]
[TimeControl "180+2"]
[Date "2023.01.03"]
[WhiteClock "0:00:05"]
[BlackClock "0:01:16"]

1. d4 {[%clk 0:03:00]}  e6 {[%clk 0:02:58]} 2. Nf3 {[%clk 0:03:00]}  f5 {[%clk 0:02:58]} 3. g3 {[%clk 0:02:59]}  Nf6 {[%clk 0:02:58]} 4. Bg2 {[%clk 0:02:59]}  d5 {[%clk 0:02:58]} 5. O-O {[%clk 0:02:59]}  Bd6 {[%clk 0:02:57]} 6. c4 {[%clk 0:03:00]}  c6 {[%clk 0:02:57]} 7. b3 {[%clk 0:03:00]}  Qe7 {[%clk 0:02:57]} 8. a4 {[%clk 0:03:00]}  a5 {[%clk 0:02:55]} 9. Ba3 {[%clk 0:03:01]}  Bxa3 {[%clk 0:02:53]} 10. Nxa3 {[%clk 0:03:01]}  b6 {[%clk 0:02:52]} 11. Nc2 {[%clk 0:02:59]}  O-O {[%clk 0:02:51]} 12. Nce1 {[%clk 0:02:59]}  Na6 {[%clk 0:02:47]} 13. Nd3 {[%clk 0:02:59]}  Bb7 {[%clk 0:02:47]} 14. Nde5 {[%clk 0:02:58]}  Rfd8 {[%clk 0:02:41]} 15. Qc1 {[%clk 0:02:46]}  Ne4 {[%clk 0:02:36]} 16. h4 {[%clk 0:02:32]}  Nb4 {[%clk 0:02:30]} 17. Qf4 {[%clk 0:02:26]}  c5 {[%clk 0:02:25]} 18. dxc5 {[%clk 0:02:15]}  bxc5 {[%clk 0:02:16]} 19. cxd5 {[%clk 0:02:09]}  Bxd5 {[%clk 0:02:05]} 20. Nc4 {[%clk 0:01:56]}  Rab8 {[%clk 0:02:00]} 21. Nxa5 {[%clk 0:01:37]}  Nc2 {[%clk 0:01:51]} 22. Rac1 {[%clk 0:01:33]}  Nd4 {[%clk 0:01:51]} 23. Nxd4 {[%clk 0:01:29]}  cxd4 {[%clk 0:01:52]} 24. Nc6 {[%clk 0:01:14]}  Bxc6 {[%clk 0:01:49]} 25. Rxc6 {[%clk 0:01:15]}  Nc3 {[%clk 0:01:45]} 26. Qe5 {[%clk 0:01:08]}  Qf6 {[%clk 0:01:34]} 27. Rxe6 {[%clk 0:00:52]}  Qxe5 {[%clk 0:01:33]} 28. Rxe5 {[%clk 0:00:52]}  Rxb3 {[%clk 0:01:34]} 29. a5 {[%clk 0:00:52]}  Ra3 {[%clk 0:01:34]} 30. Bb7 {[%clk 0:00:35]}  g6 {[%clk 0:01:31]} 31. a6 {[%clk 0:00:35]}  Kf7 {[%clk 0:01:31]} 32. Kg2 {[%clk 0:00:33]}  Kf6 {[%clk 0:01:29]} 33. f4 {[%clk 0:00:27]}  Ra2 {[%clk 0:01:29]} 34. Rf2 {[%clk 0:00:23]}  Nd1 {[%clk 0:01:28]} 35. Rf3 {[%clk 0:00:08]}  d3 {[%clk 0:01:26]} 36. Bd5 {[%clk 0:00:04]}  Rxe2+ {[%clk 0:01:26]} 37. Kh3 {[%clk 0:00:03]}  Nf2+ {[%clk 0:01:22]} 38. Kg2 {[%clk 0:00:03]}  Ng4+ {[%clk 0:01:21]} 39. Kg1 {[%clk 0:00:02]}  Nxe5 {[%clk 0:01:19]} 40. fxe5+ {[%clk 0:00:03]}  Rxe5 {[%clk 0:01:20]} 41. Bb3 {[%clk 0:00:01]}  d2 {[%clk 0:01:18]} 42. Bd1 {[%clk 0:00:01]}  Re1+ {[%clk 0:01:15]} 43. Rf1 {[%clk 0:00:02]}  Ra8 {[%clk 0:01:15]} 44. Kf2 {[%clk 0:00:01]}  Rxf1+ {[%clk 0:01:15]} 45. Kxf1 {[%clk 0:00:02]}  Rxa6 {[%clk 0:01:16]} 46. Ke2 {[%clk 0:00:03]}  Rd6 {[%clk 0:01:16]} 47. Bc2 {[%clk 0:00:03]}  Ke5 {[%clk 0:01:15]} 48. Bd1 {[%clk 0:00:04]}  f4 {[%clk 0:01:15]} 49. gxf4+ {[%clk 0:00:04]}  Kxf4 {[%clk 0:01:16]} 50. h5 {[%clk 0:00:04]}  gxh5 {[%clk 0:01:16]} 51. Kf2 {[%clk 0:00:05]}  h4 {[%clk 0:01:16]} 0-1


[Site "https://www.chess.com"]

[Event "Titled Tuesday Blitz January 03 Early 2023"]
[White "Erzhanov, Arman"]
[Black "Tactrics"]
[WhiteFideId "4138821"]
[WhiteElo "2228"]
[BlackElo "2846"]
[Result "0-1"]
[Round "03"]
[TimeControl "180+2"]
[Date "2023.01.03"]
[WhiteClock "0:01:40"]
[BlackClock "0:02:21"]

1. e4 {[%clk 0:02:59]}  e6 {[%clk 0:02:57]} 2. d4 {[%clk 0:02:56]}  d5 {[%clk 0:02:57]} 3. Nd2 {[%clk 0:02:56]}  a6 {[%clk 0:02:58]} 4. Ngf3 {[%clk 0:02:55]}  Nf6 {[%clk 0:02:58]} 5. e5 {[%clk 0:02:53]}  Nfd7 {[%clk 0:02:57]} 6. c3 {[%clk 0:02:54]}  c5 {[%clk 0:02:58]} 7. Bd3 {[%clk 0:02:53]}  Nc6 {[%clk 0:02:59]} 8. O-O {[%clk 0:02:52]}  g5 {[%clk 0:02:58]} 9. g4 {[%clk 0:02:39]}  h5 {[%clk 0:02:58]} 10. h3 {[%clk 0:02:40]}  Be7 {[%clk 0:02:51]} 11. Re1 {[%clk 0:02:38]}  Qb6 {[%clk 0:02:51]} 12. dxc5 {[%clk 0:02:24]}  Bxc5 {[%clk 0:02:50]} 13. Qe2 {[%clk 0:02:24]}  hxg4 {[%clk 0:02:49]} 14. hxg4 {[%clk 0:02:24]}  Ndxe5 {[%clk 0:02:45]} 15. Nxe5 {[%clk 0:02:22]}  Bxf2+ {[%clk 0:02:46]} 16. Qxf2 {[%clk 0:02:19]}  Rh1+ {[%clk 0:02:45]} 17. Kxh1 {[%clk 0:02:10]}  Qxf2 {[%clk 0:02:45]} 18. Nef3 {[%clk 0:02:04]}  Qg3 {[%clk 0:02:32]} 19. Rg1 {[%clk 0:01:55]}  Qh3+ {[%clk 0:02:30]} 20. Nh2 {[%clk 0:01:55]}  Qxd3 {[%clk 0:02:31]} 21. Ndf3 {[%clk 0:01:54]}  f6 {[%clk 0:02:30]} 22. Bd2 {[%clk 0:01:53]}  Bd7 {[%clk 0:02:29]} 23. Rad1 {[%clk 0:01:52]}  Qc2 {[%clk 0:02:27]} 24. Rc1 {[%clk 0:01:51]}  Qh7 {[%clk 0:02:24]} 25. Kg2 {[%clk 0:01:49]}  O-O-O {[%clk 0:02:23]} 26. c4 {[%clk 0:01:50]}  dxc4 {[%clk 0:02:22]} 27. Rxc4 {[%clk 0:01:49]}  e5 {[%clk 0:02:23]} 28. Rgc1 {[%clk 0:01:47]}  Be6 {[%clk 0:02:22]} 29. R4c2 {[%clk 0:01:45]}  Rd3 {[%clk 0:02:22]} 30. b4 {[%clk 0:01:40]}  Bd5 {[%clk 0:02:21]} 0-1


[Site "https://www.chess.com"]

[Event "Titled Tuesday Blitz January 03 Early 2023"]
[White "Kopylov, Alexander A."]
[Black "Gavilan Diaz, Mario"]
[WhiteFideId "4164857"]
[BlackFideId "2260905"]
[WhiteElo "2397"]
[BlackElo "2271"]
[Result "1-0"]
[Round "03"]
[TimeControl "180+2"]
[Date "2023.01.03"]
[WhiteClock "0:00:36"]
[BlackClock "0:00:13"]

1. e4 {[%clk 0:03:00]}  e6 {[%clk 0:02:59]} 2. d4 {[%clk 0:02:59]}  d5 {[%clk 0:03:00]} 3. Nd2 {[%clk 0:03:00]}  c5 {[%clk 0:02:59]} 4. exd5 {[%clk 0:02:59]}  Qxd5 {[%clk 0:02:59]} 5. Ngf3 {[%clk 0:03:00]}  cxd4 {[%clk 0:03:00]} 6. Bc4 {[%clk 0:03:00]}  Qd6 {[%clk 0:03:00]} 7. O-O {[%clk 0:03:00]}  Nf6 {[%clk 0:03:00]} 8. Nb3 {[%clk 0:03:00]}  Nc6 {[%clk 0:03:00]} 9. Nbxd4 {[%clk 0:03:01]}  Nxd4 {[%clk 0:03:00]} 10. Qxd4 {[%clk 0:03:01]}  Qxd4 {[%clk 0:03:00]} 11. Nxd4 {[%clk 0:03:02]}  Bd7 {[%clk 0:02:52]} 12. Nb5 {[%clk 0:02:53]}  Rc8 {[%clk 0:02:49]} 13. Bd3 {[%clk 0:02:50]}  a6 {[%clk 0:02:45]} 14. Nc3 {[%clk 0:02:51]}  Bb4 {[%clk 0:02:37]} 15. Bd2 {[%clk 0:02:45]}  O-O {[%clk 0:02:31]} 16. a3 {[%clk 0:02:45]}  Ba5 {[%clk 0:02:26]} 17. Rfd1 {[%clk 0:02:42]}  h6 {[%clk 0:02:18]} 18. Kf1 {[%clk 0:02:42]}  Rfd8 {[%clk 0:02:15]} 19. Ke2 {[%clk 0:02:42]}  Bc6 {[%clk 0:02:13]} 20. f3 {[%clk 0:02:42]}  Nd5 {[%clk 0:01:50]} 21. Nxd5 {[%clk 0:02:41]}  Rxd5 {[%clk 0:01:50]} 22. Bxa5 {[%clk 0:02:38]}  Rxa5 {[%clk 0:01:49]} 23. c4 {[%clk 0:02:34]}  Re5+ {[%clk 0:01:39]} 24. Kf2 {[%clk 0:02:34]}  a5 {[%clk 0:01:31]} 25. b4 {[%clk 0:02:29]}  b6 {[%clk 0:01:26]} 26. h4 {[%clk 0:02:22]}  g5 {[%clk 0:01:19]} 27. hxg5 {[%clk 0:02:15]}  hxg5 {[%clk 0:01:19]} 28. Re1 {[%clk 0:02:03]}  Rxe1 {[%clk 0:01:17]} 29. Rxe1 {[%clk 0:02:04]}  axb4 {[%clk 0:01:08]} 30. axb4 {[%clk 0:02:05]}  Kg7 {[%clk 0:01:05]} 31. Ra1 {[%clk 0:01:54]}  Ra8 {[%clk 0:01:05]} 32. Rxa8 {[%clk 0:01:54]}  Bxa8 {[%clk 0:01:06]} 33. Be4 {[%clk 0:01:39]}  Bxe4 {[%clk 0:00:59]} 34. fxe4 {[%clk 0:01:40]}  Kf6 {[%clk 0:00:59]} 35. Ke3 {[%clk 0:01:38]}  Ke5 {[%clk 0:00:58]} 36. c5 {[%clk 0:00:46]}  bxc5 {[%clk 0:00:58]} 37. b5 {[%clk 0:00:35]}  Kd6 {[%clk 0:00:52]} 38. Kd3 {[%clk 0:00:30]}  Kc7 {[%clk 0:00:48]} 39. e5 {[%clk 0:00:30]}  Kb7 {[%clk 0:00:45]} 40. Kc3 {[%clk 0:00:29]}  Kc7 {[%clk 0:00:45]} 41. Kb3 {[%clk 0:00:29]}  Kb7 {[%clk 0:00:44]} 42. Kc4 {[%clk 0:00:29]}  Kb6 {[%clk 0:00:44]} 43. g4 {[%clk 0:00:30]}  Kb7 {[%clk 0:00:31]} 44. Kxc5 {[%clk 0:00:30]}  Kc7 {[%clk 0:00:31]} 45. b6+ {[%clk 0:00:31]}  Kb7 {[%clk 0:00:32]} 46. Kb5 {[%clk 0:00:32]}  Kb8 {[%clk 0:00:32]} 47. Kc6 {[%clk 0:00:32]}  Kc8 {[%clk 0:00:33]} 48. b7+ {[%clk 0:00:33]}  Kb8 {[%clk 0:00:33]} 49. Kb6 {[%clk 0:00:34]}  f5 {[%clk 0:00:15]} 50. exf6 {[%clk 0:00:34]}  e5 {[%clk 0:00:12]} 51. f7 {[%clk 0:00:35]}  e4 {[%clk 0:00:13]} 52. f8=Q# {[%clk 0:00:36]} 1-0


[Site "https://www.chess.com"]

[Event "Titled Tuesday Blitz January 03 Early 2023"]
[White "Winterberg, Lukas"]
[Black "Santos Ruiz, Miguel"]
[WhiteFideId "24622702"]
[BlackFideId "22291482"]
[WhiteElo "2402"]
[BlackElo "2590"]
[Result "1-0"]
[Round "03"]
[TimeControl "180+2"]
[Date "2023.01.03"]
[WhiteClock "0:00:12"]
[BlackClock "0:00:03"]

1. g3 {[%clk 0:02:57]}  d5 {[%clk 0:02:56]} 2. Bg2 {[%clk 0:02:58]}  e5 {[%clk 0:02:57]} 3. c4 {[%clk 0:02:58]}  d4 {[%clk 0:02:53]} 4. Nf3 {[%clk 0:02:58]}  e4 {[%clk 0:02:48]} 5. Ng1 {[%clk 0:02:57]}  Nf6 {[%clk 0:02:44]} 6. d3 {[%clk 0:02:56]}  exd3 {[%clk 0:02:38]} 7. exd3 {[%clk 0:02:57]}  Bb4+ {[%clk 0:02:33]} 8. Bd2 {[%clk 0:02:51]}  Bxd2+ {[%clk 0:02:31]} 9. Nxd2 {[%clk 0:02:50]}  O-O {[%clk 0:02:31]} 10. Ne2 {[%clk 0:02:50]}  a5 {[%clk 0:02:17]} 11. O-O {[%clk 0:02:49]}  Na6 {[%clk 0:02:17]} 12. Nb3 {[%clk 0:02:44]}  c5 {[%clk 0:02:16]} 13. Nf4 {[%clk 0:02:42]}  Re8 {[%clk 0:02:10]} 14. Re1 {[%clk 0:02:42]}  Rxe1+ {[%clk 0:02:07]} 15. Qxe1 {[%clk 0:02:43]}  a4 {[%clk 0:02:06]} 16. Nc1 {[%clk 0:02:36]}  Rb8 {[%clk 0:01:53]} 17. Qd2 {[%clk 0:02:34]}  b5 {[%clk 0:01:48]} 18. Nce2 {[%clk 0:02:18]}  bxc4 {[%clk 0:01:46]} 19. dxc4 {[%clk 0:02:19]}  Qb6 {[%clk 0:01:39]} 20. Nd3 {[%clk 0:02:19]}  Bf5 {[%clk 0:01:38]} 21. Nef4 {[%clk 0:02:17]}  Nb4 {[%clk 0:01:32]} 22. b3 {[%clk 0:01:58]}  axb3 {[%clk 0:01:06]} 23. axb3 {[%clk 0:01:57]}  Nxd3 {[%clk 0:00:57]} 24. Nxd3 {[%clk 0:01:58]}  h6 {[%clk 0:00:47]} 25. Ra3 {[%clk 0:01:40]}  Bxd3 {[%clk 0:00:39]} 26. Qxd3 {[%clk 0:01:41]}  Qb4 {[%clk 0:00:39]} 27. Ra8 {[%clk 0:01:41]}  Rxa8 {[%clk 0:00:32]} 28. Bxa8 {[%clk 0:01:42]}  g6 {[%clk 0:00:30]} 29. Kg2 {[%clk 0:01:36]}  Kg7 {[%clk 0:00:30]} 30. h4 {[%clk 0:01:36]}  h5 {[%clk 0:00:30]} 31. Bf3 {[%clk 0:01:36]}  Qb6 {[%clk 0:00:29]} 32. Bd1 {[%clk 0:01:35]}  Nd7 {[%clk 0:00:28]} 33. Qe4 {[%clk 0:01:33]}  Qd6 {[%clk 0:00:26]} 34. Bf3 {[%clk 0:01:32]}  Nb8 {[%clk 0:00:25]} 35. Qb7 {[%clk 0:01:26]}  Nd7 {[%clk 0:00:18]} 36. Qe4 {[%clk 0:01:03]}  Nf6 {[%clk 0:00:18]} 37. Qd3 {[%clk 0:01:01]}  Qe5 {[%clk 0:00:17]} 38. Bd1 {[%clk 0:00:58]}  Nd7 {[%clk 0:00:17]} 39. Bf3 {[%clk 0:00:58]}  Nb8 {[%clk 0:00:18]} 40. Bb7 {[%clk 0:00:56]}  Qe7 {[%clk 0:00:16]} 41. Qf3 {[%clk 0:00:55]}  Qd7 {[%clk 0:00:14]} 42. Bd5 {[%clk 0:00:54]}  Na6 {[%clk 0:00:14]} 43. Qe4 {[%clk 0:00:53]}  Nb4 {[%clk 0:00:11]} 44. Qe5+ {[%clk 0:00:54]}  Kh7 {[%clk 0:00:11]} 45. Be4 {[%clk 0:00:47]}  Qc8 {[%clk 0:00:06]} 46. Qxh5+ {[%clk 0:00:46]}  Kg7 {[%clk 0:00:06]} 47. Qe5+ {[%clk 0:00:47]}  Kg8 {[%clk 0:00:06]} 48. h5 {[%clk 0:00:47]}  gxh5 {[%clk 0:00:07]} 49. Qg5+ {[%clk 0:00:47]}  Kf8 {[%clk 0:00:07]} 50. Qh6+ {[%clk 0:00:47]}  Ke7 {[%clk 0:00:07]} 51. Qxh5 {[%clk 0:00:45]}  Qc7 {[%clk 0:00:07]} 52. Qg5+ {[%clk 0:00:45]}  Ke8 {[%clk 0:00:07]} 53. Bd5 {[%clk 0:00:41]}  Qe7 {[%clk 0:00:07]} 54. Qf5 {[%clk 0:00:36]}  Kd8 {[%clk 0:00:05]} 55. Qf4 {[%clk 0:00:33]}  Ke8 {[%clk 0:00:04]} 56. Qb8+ {[%clk 0:00:33]}  Qd8 {[%clk 0:00:05]} 57. Qe5+ {[%clk 0:00:31]}  Kf8 {[%clk 0:00:03]} 58. g4 {[%clk 0:00:29]}  Nxd5 {[%clk 0:00:03]} 59. cxd5 {[%clk 0:00:30]}  d3 {[%clk 0:00:03]} 60. Kf3 {[%clk 0:00:30]}  d2 {[%clk 0:00:03]} 61. Ke2 {[%clk 0:00:30]}  Qa5 {[%clk 0:00:03]} 62. d6 {[%clk 0:00:29]}  Qa2 {[%clk 0:00:03]} 63. d7 {[%clk 0:00:24]}  d1=Q+ {[%clk 0:00:02]} 64. Kxd1 {[%clk 0:00:24]}  Qxb3+ {[%clk 0:00:02]} 65. Kd2 {[%clk 0:00:18]}  Qa2+ {[%clk 0:00:02]} 66. Ke3 {[%clk 0:00:17]}  Qa3+ {[%clk 0:00:03]} 67. Ke2 {[%clk 0:00:16]}  Qa2+ {[%clk 0:00:03]} 68. Kf1 {[%clk 0:00:14]}  Qa6+ {[%clk 0:00:04]} 69. Kg1 {[%clk 0:00:13]}  Qa1+ {[%clk 0:00:04]} 70. Qxa1 {[%clk 0:00:13]}  Ke7 {[%clk 0:00:03]} 71. Qa7 {[%clk 0:00:12]} 1-0


[Site "https://www.chess.com"]

[Event "Titled Tuesday Blitz January 03 Early 2023"]
[White "Matinian, Nikita"]
[Black "Tran, Thanh Tu"]
[WhiteFideId "24129100"]
[BlackFideId "12401404"]
[WhiteElo "2407"]
[BlackElo "2412"]
[Result "1-0"]
[Round "03"]
[TimeControl "180+2"]
[Date "2023.01.03"]
[WhiteClock "0:00:10"]
[BlackClock "0:00:02"]

1. e4 {[%clk 0:03:00]}  Nc6 {[%clk 0:03:00]} 2. d4 {[%clk 0:03:00]}  d6 {[%clk 0:03:00]} 3. Nf3 {[%clk 0:03:00]}  Nf6 {[%clk 0:03:01]} 4. Nc3 {[%clk 0:02:59]}  g6 {[%clk 0:03:01]} 5. d5 {[%clk 0:02:59]}  Nb8 {[%clk 0:03:01]} 6. h3 {[%clk 0:03:00]}  Bg7 {[%clk 0:03:02]} 7. Bf4 {[%clk 0:02:59]}  O-O {[%clk 0:03:02]} 8. Qd2 {[%clk 0:03:00]}  c6 {[%clk 0:03:02]} 9. O-O-O {[%clk 0:02:58]}  b5 {[%clk 0:03:00]} 10. a3 {[%clk 0:02:48]}  a5 {[%clk 0:02:57]} 11. dxc6 {[%clk 0:02:48]}  b4 {[%clk 0:02:58]} 12. Nb5 {[%clk 0:02:43]}  Nxc6 {[%clk 0:02:46]} 13. e5 {[%clk 0:02:42]}  Ne4 {[%clk 0:02:06]} 14. Qd5 {[%clk 0:02:42]}  Nxf2 {[%clk 0:02:06]} 15. Qxc6 {[%clk 0:02:42]}  Bd7 {[%clk 0:02:05]} 16. Qc7 {[%clk 0:02:40]}  Nxh1 {[%clk 0:01:59]} 17. Qxd8 {[%clk 0:02:40]}  Rfxd8 {[%clk 0:01:56]} 18. exd6 {[%clk 0:02:39]}  exd6 {[%clk 0:01:54]} 19. Nxd6 {[%clk 0:02:22]}  bxa3 {[%clk 0:01:44]} 20. bxa3 {[%clk 0:02:23]}  Be6 {[%clk 0:01:27]} 21. Bb5 {[%clk 0:02:15]}  Bf8 {[%clk 0:01:20]} 22. Ng5 {[%clk 0:02:05]}  Rab8 {[%clk 0:00:19]} 23. Nxe6 {[%clk 0:01:59]}  Bxd6 {[%clk 0:00:18]} 24. Bxd6 {[%clk 0:01:52]}  Rxd6 {[%clk 0:00:14]} 25. Rxd6 {[%clk 0:01:50]}  fxe6 {[%clk 0:00:14]} 26. Bc4 {[%clk 0:01:44]}  Kg7 {[%clk 0:00:13]} 27. Rxe6 {[%clk 0:01:44]}  Ng3 {[%clk 0:00:13]} 28. Re7+ {[%clk 0:01:44]}  Kh6 {[%clk 0:00:12]} 29. a4 {[%clk 0:01:41]}  Nf5 {[%clk 0:00:10]} 30. Ra7 {[%clk 0:01:41]}  Ne3 {[%clk 0:00:10]} 31. Bb5 {[%clk 0:01:41]}  Nxg2 {[%clk 0:00:09]} 32. Rxa5 {[%clk 0:01:41]}  Nf4 {[%clk 0:00:08]} 33. Bd7 {[%clk 0:01:34]}  Rb7 {[%clk 0:00:09]} 34. Bg4 {[%clk 0:01:31]}  Kg7 {[%clk 0:00:09]} 35. Rb5 {[%clk 0:01:31]}  Ra7 {[%clk 0:00:09]} 36. a5 {[%clk 0:01:31]}  h5 {[%clk 0:00:09]} 37. Bc8 {[%clk 0:01:29]}  Kh6 {[%clk 0:00:08]} 38. a6 {[%clk 0:01:29]}  h4 {[%clk 0:00:07]} 39. c4 {[%clk 0:01:27]}  Rc7 {[%clk 0:00:06]} 40. Bb7 {[%clk 0:01:19]}  Rxc4+ {[%clk 0:00:07]} 41. Kb2 {[%clk 0:01:19]}  Ra4 {[%clk 0:00:08]} 42. Kb3 {[%clk 0:01:19]}  Ra1 {[%clk 0:00:08]} 43. Rb4 {[%clk 0:01:20]}  Nd3 {[%clk 0:00:06]} 44. Rxh4+ {[%clk 0:01:19]}  Kg5 {[%clk 0:00:06]} 45. Rc4 {[%clk 0:01:19]}  Kf6 {[%clk 0:00:05]} 46. Kc3 {[%clk 0:01:17]}  Ne5 {[%clk 0:00:05]} 47. Rc8 {[%clk 0:01:14]}  g5 {[%clk 0:00:04]} 48. Kd4 {[%clk 0:01:12]}  Nd7 {[%clk 0:00:04]} 49. Rc7 {[%clk 0:01:09]}  Nf8 {[%clk 0:00:03]} 50. Rc6+ {[%clk 0:01:03]}  Ne6+ {[%clk 0:00:03]} 51. Kd5 {[%clk 0:01:03]}  Ra5+ {[%clk 0:00:04]} 52. Kc4 {[%clk 0:01:03]}  Ke5 {[%clk 0:00:03]} 53. Kb4 {[%clk 0:01:02]}  Ra1 {[%clk 0:00:03]} 54. Rc3 {[%clk 0:01:02]}  Nf4 {[%clk 0:00:03]} 55. Ra3 {[%clk 0:00:58]}  Rb1+ {[%clk 0:00:03]} 56. Ka5 {[%clk 0:00:58]}  Ne6 {[%clk 0:00:03]} 57. a7 {[%clk 0:00:54]}  Nc7 {[%clk 0:00:02]} 58. a8=Q {[%clk 0:00:49]}  Nxa8 {[%clk 0:00:02]} 59. Bxa8 {[%clk 0:00:50]}  Rg1 {[%clk 0:00:02]} 60. Bb7 {[%clk 0:00:46]}  g4 {[%clk 0:00:02]} 61. hxg4 {[%clk 0:00:39]}  Rxg4 {[%clk 0:00:03]} 62. Kb5 {[%clk 0:00:39]}  Rg5 {[%clk 0:00:03]} 63. Kc5 {[%clk 0:00:40]}  Kf4+ {[%clk 0:00:04]} 64. Bd5 {[%clk 0:00:40]}  Ke5 {[%clk 0:00:04]} 65. Re3+ {[%clk 0:00:39]}  Kf4 {[%clk 0:00:05]} 66. Re8 {[%clk 0:00:39]}  Kf5 {[%clk 0:00:05]} 67. Kd4 {[%clk 0:00:37]}  Rg4+ {[%clk 0:00:06]} 68. Be4+ {[%clk 0:00:38]}  Kf6 {[%clk 0:00:06]} 69. Kd5 {[%clk 0:00:37]}  Rg5+ {[%clk 0:00:06]} 70. Kd6 {[%clk 0:00:38]}  Ra5 {[%clk 0:00:06]} 71. Rf8+ {[%clk 0:00:38]}  Kg5 {[%clk 0:00:07]} 72. Bd5 {[%clk 0:00:37]}  Ra6+ {[%clk 0:00:07]} 73. Ke5 {[%clk 0:00:37]}  Kg4 {[%clk 0:00:08]} 74. Rg8+ {[%clk 0:00:37]}  Kh4 {[%clk 0:00:07]} 75. Be4 {[%clk 0:00:34]}  Kh5 {[%clk 0:00:07]} 76. Kf4 {[%clk 0:00:33]}  Kh6 {[%clk 0:00:05]} 77. Bf5 {[%clk 0:00:30]}  Ra4+ {[%clk 0:00:04]} 78. Ke5 {[%clk 0:00:30]}  Ra5+ {[%clk 0:00:05]} 79. Kf6 {[%clk 0:00:30]}  Ra6+ {[%clk 0:00:04]} 80. Be6 {[%clk 0:00:31]}  Ra7 {[%clk 0:00:05]} 81. Rg3 {[%clk 0:00:27]}  Ra5 {[%clk 0:00:04]} 82. Bf5 {[%clk 0:00:13]}  Ra6+ {[%clk 0:00:05]} 83. Be6 {[%clk 0:00:13]}  Ra5 {[%clk 0:00:05]} 84. Rg8 {[%clk 0:00:14]}  Ra7 {[%clk 0:00:04]} 85. Rg6+ {[%clk 0:00:12]}  Kh7 {[%clk 0:00:02]} 86. Rg4 {[%clk 0:00:10]} 1-0


[Site "https://www.chess.com"]